[Event "*** Titled Tuesday Blitz"]
[Site "Chess.com"]
[Date "2021.04.27"]
[Round "3"]
[White "Natalya_Buksa"]
[Black "mr65"]
[Result "1-0"]
[WhiteElo "2505"]
[BlackElo "2184"]
[TimeControl "180+1"]
[EndTime "10:24:04 PDT"]
[Termination "Natalya_Buksa won by resignation"]

1. d4 {[%clk 0:03:00.9]} 1... Nf6 {[%clk 0:02:59.2]} 2. Nc3 {[%clk 0:03:01.4]}
2... d5 {[%clk 0:02:58.3]} 3. Bf4 {[%clk 0:03:01.6]} 3... e6 {[%clk 0:02:55.9]}
4. e3 {[%clk 0:03:02]} 4... Be7 {[%clk 0:02:55.2]} 5. Bd3 {[%clk 0:03:01.4]}
5... O-O {[%clk 0:02:54.4]} 6. Nf3 {[%clk 0:03:01.9]} 6... c5 {[%clk 0:02:51.5]}
7. dxc5 {[%clk 0:03:01.5]} 7... Bxc5 {[%clk 0:02:49.9]} 8. O-O {[%clk
0:03:02.4]} 8... Nc6 {[%clk 0:02:49]} 9. e4 {[%clk 0:03:02.7]} 9... dxe4 {[%clk
0:02:47.3]} 10. Nxe4 {[%clk 0:03:03.6]} 10... Nxe4 {[%clk 0:02:46.8]} 11. Bxe4
{[%clk 0:03:04.5]} 11... Qxd1 {[%clk 0:02:44.5]} 12. Rfxd1 {[%clk 0:03:03.3]}
12... Ne7 {[%clk 0:02:27.9]} 13. Bd6 {[%clk 0:03:00.7]} 13... Bxd6 {[%clk
0:02:26.5]} 14. Rxd6 {[%clk 0:03:01.6]} 14... Nf5 {[%clk 0:02:20.7]} 15. Bxf5
{[%clk 0:03:01.3]} 15... exf5 {[%clk 0:02:20.4]} 16. c4 {[%clk 0:03:01]} 16...
g6 {[%clk 0:02:03.4]} 17. Rad1 {[%clk 0:02:59.2]} 17... Re8 {[%clk 0:01:59.6]}
18. Kf1 {[%clk 0:02:58.6]} 18... Be6 {[%clk 0:01:57.4]} 19. b3 {[%clk
0:02:58.6]} 19... a5 {[%clk 0:01:56.8]} 20. a4 {[%clk 0:02:52.2]} 20... Ra6
{[%clk 0:01:41]} 21. Rxa6 {[%clk 0:02:41.8]} 21... bxa6 {[%clk 0:01:40.8]} 22.
Rd6 {[%clk 0:02:42.7]} 22... Rb8 {[%clk 0:01:40.4]} 23. Nd4 {[%clk 0:02:42.1]}
23... Kf8 {[%clk 0:01:29.6]} 24. Ke2 {[%clk 0:02:34.8]} 24... Ke7 {[%clk
0:01:25.3]} 25. Rxe6+ {[%clk 0:02:34.4]} 25... fxe6 {[%clk 0:01:23.6]} 26. Nc6+
{[%clk 0:02:34.6]} 1-0

[Event "*** Titled Tuesday Blitz"]
[Site "Chess.com"]
[Date "2021.04.27"]
[Round "3"]
[White "ural58"]
[Black "shreyansshah123"]
[Result "1-0"]
[WhiteElo "2478"]
[BlackElo "1694"]
[TimeControl "180+1"]
[EndTime "10:24:07 PDT"]
[Termination "ural58 won by resignation"]

1. e4 {[%clk 0:03:00.9]} 1... c5 {[%clk 0:02:59.4]} 2. b3 {[%clk 0:02:43.5]}
2... d5 {[%clk 0:02:57.1]} 3. exd5 {[%clk 0:02:43]} 3... Qxd5 {[%clk 0:02:58]}
4. Nc3 {[%clk 0:02:42.3]} 4... Qd8 {[%clk 0:02:57.4]} 5. Nf3 {[%clk 0:02:34.8]}
5... Nf6 {[%clk 0:02:57.1]} 6. Bb5+ {[%clk 0:02:32.8]} 6... Bd7 {[%clk
0:02:56.7]} 7. Qe2 {[%clk 0:02:32.4]} 7... Bxb5 {[%clk 0:02:55.7]} 8. Qxb5+
{[%clk 0:02:31.6]} 8... Qd7 {[%clk 0:02:56.6]} 9. Qxc5 {[%clk 0:02:30.2]} 9...
e6 {[%clk 0:02:55.7]} 10. Qb5 {[%clk 0:02:25.9]} 10... Qxb5 {[%clk 0:02:54.5]}
11. Nxb5 {[%clk 0:02:25.6]} 11... Na6 {[%clk 0:02:55.4]} 12. Bb2 {[%clk
0:02:22.7]} 12... O-O-O {[%clk 0:02:54.7]} 13. Nxa7+ {[%clk 0:02:21.2]} 13...
Kb8 {[%clk 0:02:54.5]} 14. Nb5 {[%clk 0:02:21.7]} 14... Bc5 {[%clk 0:02:54.1]}
15. Be5+ {[%clk 0:02:07.5]} 15... Ka8 {[%clk 0:02:50.5]} 16. c3 {[%clk 0:02:06]}
16... Ng4 {[%clk 0:02:43]} 17. Bg3 {[%clk 0:01:58.2]} 17... h5 {[%clk
0:02:41.1]} 18. d4 {[%clk 0:01:57.2]} 18... Be7 {[%clk 0:02:39.2]} 19. h3 {[%clk
0:01:56.8]} 19... h4 {[%clk 0:02:35.7]} 20. Bf4 {[%clk 0:01:55.8]} 20... Nf6
{[%clk 0:02:33.1]} 21. O-O {[%clk 0:01:53.9]} 21... Nd5 {[%clk 0:02:33.1]} 22.
Bd2 {[%clk 0:01:52.3]} 22... Nac7 {[%clk 0:02:31.7]} 23. a4 {[%clk 0:01:49.3]}
23... Nxb5 {[%clk 0:02:30.8]} 24. axb5+ {[%clk 0:01:49.3]} 24... Kb8 {[%clk
0:02:31.7]} 25. Ne5 {[%clk 0:01:48.2]} 25... Rhf8 {[%clk 0:02:30.4]} 26. c4
{[%clk 0:01:48.4]} 26... Nc7 {[%clk 0:02:29.8]} 27. b6 {[%clk 0:01:47.1]} 27...
Na8 {[%clk 0:02:28.7]} 28. Bf4 {[%clk 0:01:44.8]} 28... Bd6 {[%clk 0:02:27.7]}
29. c5 {[%clk 0:01:44.3]} 29... Bxe5 {[%clk 0:02:27.4]} 30. Bxe5+ {[%clk
0:01:45.2]} 30... Kc8 {[%clk 0:02:27.3]} 31. Rxa8+ {[%clk 0:01:45]} 31... Kd7
{[%clk 0:02:28.2]} 32. Rxd8+ {[%clk 0:01:40.9]} 1-0

[Event "*** Titled Tuesday Blitz"]
[Site "Chess.com"]
[Date "2021.04.27"]
[Round "3"]
[White "GM_dmitrij"]
[Black "OlegKrivonosov"]
[Result "1-0"]
[WhiteElo "2958"]
[BlackElo "2673"]
[TimeControl "180+1"]
[EndTime "10:24:21 PDT"]
[Termination "GM_dmitrij won by resignation"]

1. e4 {[%clk 0:03:00.9]} 1... e5 {[%clk 0:02:59.1]} 2. Nf3 {[%clk 0:03:00]} 2...
Nc6 {[%clk 0:02:58.9]} 3. d4 {[%clk 0:03:00.4]} 3... exd4 {[%clk 0:02:58.3]} 4.
Nxd4 {[%clk 0:03:01.3]} 4... Nf6 {[%clk 0:02:54.8]} 5. Nxc6 {[%clk 0:03:01]}
5... bxc6 {[%clk 0:02:54.7]} 6. e5 {[%clk 0:03:01]} 6... Qe7 {[%clk 0:02:54.4]}
7. Qe2 {[%clk 0:03:01.5]} 7... Nd5 {[%clk 0:02:54.5]} 8. c4 {[%clk 0:03:02]}
8... Ba6 {[%clk 0:02:52.3]} 9. b3 {[%clk 0:03:00.3]} 9... g6 {[%clk 0:02:50.9]}
10. Ba3 {[%clk 0:02:59.8]} 10... Nb4 {[%clk 0:02:49.9]} 11. Bb2 {[%clk
0:02:59.5]} 11... Bg7 {[%clk 0:02:49.5]} 12. a3 {[%clk 0:02:59.6]} 12... Nd5
{[%clk 0:02:48.4]} 13. Nd2 {[%clk 0:02:59.3]} 13... O-O {[%clk 0:02:44.1]} 14.
O-O-O {[%clk 0:02:59.2]} 14... Rfe8 {[%clk 0:02:42.7]} 15. Kb1 {[%clk
0:02:58.1]} 15... Nb6 {[%clk 0:02:10.7]} 16. Qf3 {[%clk 0:02:54]} 16... Bxe5
{[%clk 0:01:59.7]} 17. Re1 {[%clk 0:02:53.8]} 17... d6 {[%clk 0:01:58.5]} 18. c5
{[%clk 0:02:50.3]} 18... Bxf1 {[%clk 0:01:55.1]} 19. cxb6 {[%clk 0:02:49.5]}
19... Ba6 {[%clk 0:01:45.2]} 20. Qxc6 {[%clk 0:02:48.8]} 20... Qf6 {[%clk
0:01:23]} 21. Rxe5 {[%clk 0:02:24.2]} 1-0

[Event "*** Titled Tuesday Blitz"]
[Site "Chess.com"]
[Date "2021.04.27"]
[Round "3"]
[White "KeithArkell"]
[Black "JoliyRoger"]
[Result "1-0"]
[WhiteElo "2610"]
[BlackElo "2399"]
[TimeControl "180+1"]
[EndTime "10:24:40 PDT"]
[Termination "KeithArkell won by resignation"]

1. d4 {[%clk 0:03:00.9]} 1... Nf6 {[%clk 0:02:46.8]} 2. Nf3 {[%clk 0:03:00.8]}
2... e6 {[%clk 0:02:46.4]} 3. c4 {[%clk 0:03:01.4]} 3... c5 {[%clk 0:02:39.5]}
4. d5 {[%clk 0:03:00.9]} 4... exd5 {[%clk 0:02:40.1]} 5. cxd5 {[%clk 0:03:00.6]}
5... d6 {[%clk 0:02:41]} 6. Nc3 {[%clk 0:03:00.1]} 6... g6 {[%clk 0:02:41.5]} 7.
Nd2 {[%clk 0:02:59.5]} 7... Bg7 {[%clk 0:02:40.6]} 8. Nc4 {[%clk 0:02:59.7]}
8... O-O {[%clk 0:02:41.2]} 9. Bf4 {[%clk 0:02:59.8]} 9... Ne8 {[%clk
0:02:41.8]} 10. g3 {[%clk 0:03:00.3]} 10... Qe7 {[%clk 0:02:36.4]} 11. Bg2
{[%clk 0:02:57.6]} 11... Nd7 {[%clk 0:02:34.7]} 12. O-O {[%clk 0:02:55.9]} 12...
Ne5 {[%clk 0:02:30.7]} 13. Nxe5 {[%clk 0:02:56.1]} 13... Bxe5 {[%clk 0:02:28.7]}
14. Bxe5 {[%clk 0:02:56.3]} 14... Qxe5 {[%clk 0:02:27.9]} 15. Rb1 {[%clk
0:02:52.9]} 15... Bd7 {[%clk 0:02:26.7]} 16. Qd2 {[%clk 0:02:51.6]} 16... f5
{[%clk 0:02:22.1]} 17. b4 {[%clk 0:02:47.2]} 17... b6 {[%clk 0:02:07.9]} 18.
bxc5 {[%clk 0:02:46.9]} 18... dxc5 {[%clk 0:02:08.4]} 19. d6 {[%clk 0:02:45.6]}
19... Rd8 {[%clk 0:02:07.6]} 20. Rfd1 {[%clk 0:02:40.6]} 20... Be6 {[%clk
0:01:58]} 21. f4 {[%clk 0:02:19.4]} 21... Qxd6 {[%clk 0:01:57.3]} 22. Qe3 {[%clk
0:02:18.8]} 22... Qe7 {[%clk 0:01:11]} 23. Rxd8 {[%clk 0:02:17.1]} 23... Qxd8
{[%clk 0:01:11.7]} 24. Qxe6+ {[%clk 0:02:16.9]} 24... Kh8 {[%clk 0:01:12.6]} 25.
Qe5+ {[%clk 0:02:15.9]} 25... Nf6 {[%clk 0:01:09.5]} 26. Nd5 {[%clk 0:02:15.2]}
1-0

[Event "*** Titled Tuesday Blitz"]
[Site "Chess.com"]
[Date "2021.04.27"]
[Round "3"]
[White "pastouche06"]
[Black "kidagent"]
[Result "1-0"]
[WhiteElo "2571"]
[BlackElo "2342"]
[TimeControl "180+1"]
[EndTime "10:25:05 PDT"]
[Termination "pastouche06 won by resignation"]

1. d4 {[%clk 0:03:00.9]} 1... d5 {[%clk 0:03:00.1]} 2. c4 {[%clk 0:03:00.9]}
2... c6 {[%clk 0:03:00.6]} 3. Nf3 {[%clk 0:03:01]} 3... Nf6 {[%clk 0:03:00.4]}
4. Qc2 {[%clk 0:03:01.1]} 4... g6 {[%clk 0:02:59.9]} 5. Bf4 {[%clk 0:03:00.7]}
5... Bf5 {[%clk 0:02:58.5]} 6. Qb3 {[%clk 0:03:00.4]} 6... Qb6 {[%clk 0:02:59]}
7. c5 {[%clk 0:02:56]} 7... Qxb3 {[%clk 0:02:58.8]} 8. axb3 {[%clk 0:02:56.9]}
8... Na6 {[%clk 0:02:53.9]} 9. Nc3 {[%clk 0:02:50.8]} 9... Nb4 {[%clk
0:02:53.4]} 10. Ra4 {[%clk 0:02:47.2]} 10... a5 {[%clk 0:02:44.3]} 11. e3 {[%clk
0:02:11.7]} 11... Bc2 {[%clk 0:02:39.9]} 12. Bc7 {[%clk 0:02:08.2]} 12... Bxb3
{[%clk 0:02:35.7]} 13. Rxa5 {[%clk 0:02:04.5]} 13... Rxa5 {[%clk 0:02:35.4]} 14.
Bxa5 {[%clk 0:02:05.4]} 14... Na6 {[%clk 0:02:23.1]} 15. Bxa6 {[%clk 0:01:59.2]}
15... bxa6 {[%clk 0:02:22.7]} 16. Ne5 {[%clk 0:01:59.7]} 16... Nd7 {[%clk
0:02:11]} 17. Nxc6 {[%clk 0:01:58.6]} 17... e5 {[%clk 0:02:10.4]} 18. O-O {[%clk
0:01:52.8]} 18... Bg7 {[%clk 0:02:04.7]} 19. Ra1 {[%clk 0:01:51.2]} 19... O-O
{[%clk 0:02:03.2]} 20. Nxd5 {[%clk 0:01:38.1]} 20... Bxd5 {[%clk 0:02:01]} 21.
Ne7+ {[%clk 0:01:38.3]} 21... Kh8 {[%clk 0:02:01.5]} 22. Nxd5 {[%clk 0:01:39.2]}
22... exd4 {[%clk 0:02:01.9]} 23. c6 {[%clk 0:01:37.8]} 23... Nc5 {[%clk
0:02:00.6]} 24. Bb4 {[%clk 0:01:33.8]} 24... dxe3 {[%clk 0:01:43.9]} 25. Bxc5
{[%clk 0:01:31]} 25... exf2+ {[%clk 0:01:43.4]} 26. Kxf2 {[%clk 0:01:30]} 26...
Rc8 {[%clk 0:01:43.9]} 27. Ne7 {[%clk 0:01:17.4]} 1-0

[Event "*** Titled Tuesday Blitz"]
[Site "Chess.com"]
[Date "2021.04.27"]
[Round "3"]
[White "starworld123"]
[Black "szachuspl"]
[Result "0-1"]
[WhiteElo "2747"]
[BlackElo "2555"]
[TimeControl "180+1"]
[EndTime "10:25:20 PDT"]
[Termination "szachuspl won by resignation"]

1. d4 {[%clk 0:03:00.9]} 1... Nf6 {[%clk 0:02:53.7]} 2. c4 {[%clk 0:03:01.2]}
2... g6 {[%clk 0:02:53.3]} 3. g3 {[%clk 0:03:00.9]} 3... Bg7 {[%clk 0:02:52.1]}
4. Bg2 {[%clk 0:03:01.3]} 4... O-O {[%clk 0:02:52]} 5. Nc3 {[%clk 0:03:01.8]}
5... d6 {[%clk 0:02:51.2]} 6. Nf3 {[%clk 0:03:02.3]} 6... c5 {[%clk 0:02:48.6]}
7. O-O {[%clk 0:03:02.5]} 7... Nc6 {[%clk 0:02:48.6]} 8. b3 {[%clk 0:02:59.3]}
8... Bf5 {[%clk 0:02:39.1]} 9. Bb2 {[%clk 0:02:56.1]} 9... Ne4 {[%clk
0:02:37.9]} 10. Nxe4 {[%clk 0:02:50.2]} 10... Bxe4 {[%clk 0:02:37.8]} 11. e3
{[%clk 0:02:49.7]} 11... a5 {[%clk 0:02:27.5]} 12. Qe2 {[%clk 0:02:37.5]} 12...
a4 {[%clk 0:02:20.5]} 13. dxc5 {[%clk 0:02:20.7]} 13... Bxb2 {[%clk 0:02:13.9]}
14. Qxb2 {[%clk 0:02:21.6]} 14... dxc5 {[%clk 0:02:11.1]} 15. Rfd1 {[%clk
0:02:20.9]} 15... Qb6 {[%clk 0:02:09.3]} 16. h4 {[%clk 0:02:13.3]} 16... Rfd8
{[%clk 0:02:04]} 17. h5 {[%clk 0:02:05.8]} 17... f6 {[%clk 0:01:54.8]} 18. Nh4
{[%clk 0:02:02.2]} 18... Bxg2 {[%clk 0:01:52.6]} 19. Kxg2 {[%clk 0:02:03.1]}
19... Kf7 {[%clk 0:01:46.9]} 20. Qd2 {[%clk 0:01:58.5]} 20... Rxd2 {[%clk
0:01:45.7]} 21. Rxd2 {[%clk 0:01:47.6]} 21... axb3 {[%clk 0:01:42.5]} 22. Rb1
{[%clk 0:01:37.8]} 22... Qb4 {[%clk 0:01:14.2]} 0-1

[Event "*** Titled Tuesday Blitz"]
[Site "Chess.com"]
[Date "2021.04.27"]
[Round "3"]
[White "MFguimaraes"]
[Black "ckgchess"]
[Result "0-1"]
[WhiteElo "2427"]
[BlackElo "2676"]
[TimeControl "180+1"]
[EndTime "10:25:35 PDT"]
[Termination "ckgchess won by resignation"]

1. e4 {[%clk 0:02:57.6]} 1... c5 {[%clk 0:03:00.1]} 2. Nf3 {[%clk 0:02:57.1]}
2... d6 {[%clk 0:03:00.8]} 3. Bb5+ {[%clk 0:02:54.6]} 3... Nd7 {[%clk
0:03:00.8]} 4. c3 {[%clk 0:02:54]} 4... a6 {[%clk 0:03:01.3]} 5. Ba4 {[%clk
0:02:54.1]} 5... Nf6 {[%clk 0:03:01.4]} 6. d3 {[%clk 0:02:53.6]} 6... b5 {[%clk
0:03:01]} 7. Bc2 {[%clk 0:02:53.5]} 7... Bb7 {[%clk 0:03:01.1]} 8. O-O {[%clk
0:02:53.9]} 8... e6 {[%clk 0:03:01]} 9. Re1 {[%clk 0:02:52.3]} 9... Be7 {[%clk
0:03:01.2]} 10. a4 {[%clk 0:02:52.5]} 10... O-O {[%clk 0:03:00.2]} 11. Na3
{[%clk 0:02:51.2]} 11... Qb6 {[%clk 0:02:55.1]} 12. Be3 {[%clk 0:02:47.2]} 12...
Rfc8 {[%clk 0:02:46.5]} 13. h3 {[%clk 0:02:38.2]} 13... Bc6 {[%clk 0:02:36.3]}
14. b4 {[%clk 0:02:33.4]} 14... Qb7 {[%clk 0:02:31.7]} 15. bxc5 {[%clk
0:02:19.2]} 15... dxc5 {[%clk 0:02:24.5]} 16. axb5 {[%clk 0:02:13.9]} 16... axb5
{[%clk 0:02:24.4]} 17. Bb3 {[%clk 0:01:46.9]} 17... c4 {[%clk 0:02:19.8]} 18.
dxc4 {[%clk 0:01:42.8]} 18... Rxa3 {[%clk 0:02:18.9]} 19. Rxa3 {[%clk
0:01:36.6]} 19... Bxa3 {[%clk 0:02:19.8]} 20. cxb5 {[%clk 0:01:30.3]} 20... Bxe4
{[%clk 0:02:14.9]} 21. Nd4 {[%clk 0:01:28.8]} 21... Bxg2 {[%clk 0:02:09.4]} 22.
f3 {[%clk 0:01:27]} 22... Bxh3 {[%clk 0:02:06.7]} 23. Kh2 {[%clk 0:01:27.1]}
23... Bf5 {[%clk 0:02:00.9]} 24. Nxf5 {[%clk 0:01:27.1]} 24... exf5 {[%clk
0:02:01.8]} 25. c4 {[%clk 0:01:16.1]} 25... Ne5 {[%clk 0:01:53]} 26. Kg3 {[%clk
0:01:05]} 26... Bb4 {[%clk 0:01:37.2]} 27. Bd2 {[%clk 0:00:57]} 0-1

[Event "*** Titled Tuesday Blitz"]
[Site "Chess.com"]
[Date "2021.04.27"]
[Round "3"]
[White "azikom"]
[Black "VerdeNotte"]
[Result "0-1"]
[WhiteElo "2654"]
[BlackElo "2904"]
[TimeControl "180+1"]
[EndTime "10:25:36 PDT"]
[Termination "VerdeNotte won by resignation"]

1. d4 {[%clk 0:02:59.6]} 1... Nf6 {[%clk 0:02:59.6]} 2. Nf3 {[%clk 0:02:59.9]}
2... g6 {[%clk 0:03:00.1]} 3. g3 {[%clk 0:03:00]} 3... Bg7 {[%clk 0:03:00.5]} 4.
Bg2 {[%clk 0:03:00.9]} 4... c5 {[%clk 0:03:00.7]} 5. O-O {[%clk 0:03:01.8]} 5...
cxd4 {[%clk 0:03:00.6]} 6. Nxd4 {[%clk 0:03:01.5]} 6... h5 {[%clk 0:03:00.7]} 7.
h3 {[%clk 0:02:55.5]} 7... O-O {[%clk 0:02:56.6]} 8. c4 {[%clk 0:02:55.2]} 8...
d5 {[%clk 0:02:56.7]} 9. cxd5 {[%clk 0:02:51.6]} 9... Nxd5 {[%clk 0:02:57.6]}
10. Nb5 {[%clk 0:02:51.4]} 10... Be6 {[%clk 0:02:52.4]} 11. N1c3 {[%clk
0:02:50.9]} 11... Nxc3 {[%clk 0:02:51.9]} 12. Nxc3 {[%clk 0:02:50.6]} 12... Nc6
{[%clk 0:02:49.5]} 13. Be3 {[%clk 0:02:42.2]} 13... Qa5 {[%clk 0:02:46.9]} 14.
Qc1 {[%clk 0:02:27.2]} 14... Rac8 {[%clk 0:02:45.2]} 15. Bh6 {[%clk 0:02:24.3]}
15... Nd4 {[%clk 0:02:43.5]} 16. Qg5 {[%clk 0:01:58.8]} 16... Rc5 {[%clk
0:02:37.3]} 17. Qf4 {[%clk 0:01:12.2]} 17... Rxc3 {[%clk 0:02:22.5]} 18. Qd2
{[%clk 0:00:15.3]} 18... Bxh6 {[%clk 0:02:06.1]} 0-1

[Event "*** Titled Tuesday Blitz"]
[Site "Chess.com"]
[Date "2021.04.27"]
[Round "3"]
[White "AldokhinIvan"]
[Black "IngOscarArdila"]
[Result "1-0"]
[WhiteElo "2533"]
[BlackElo "2253"]
[TimeControl "180+1"]
[EndTime "10:25:37 PDT"]
[Termination "AldokhinIvan won by checkmate"]

1. e4 {[%clk 0:03:00.9]} 1... e5 {[%clk 0:02:57.3]} 2. Nf3 {[%clk 0:03:01.1]}
2... Nc6 {[%clk 0:02:56.9]} 3. Bb5 {[%clk 0:03:01.2]} 3... a6 {[%clk 0:02:56.7]}
4. Ba4 {[%clk 0:03:01.5]} 4... Nf6 {[%clk 0:02:56.4]} 5. O-O {[%clk 0:03:01.8]}
5... b5 {[%clk 0:02:56.6]} 6. Bb3 {[%clk 0:03:01.7]} 6... Be7 {[%clk 0:02:55.2]}
7. d4 {[%clk 0:03:00.1]} 7... d6 {[%clk 0:02:51.5]} 8. dxe5 {[%clk 0:02:48.1]}
8... Nxe5 {[%clk 0:02:51]} 9. Nxe5 {[%clk 0:02:43.4]} 9... dxe5 {[%clk
0:02:51.9]} 10. Qf3 {[%clk 0:02:41]} 10... O-O {[%clk 0:02:50.3]} 11. Nc3 {[%clk
0:02:38.9]} 11... c6 {[%clk 0:02:48.9]} 12. h3 {[%clk 0:02:35.4]} 12... Qc7
{[%clk 0:02:48.6]} 13. Bg5 {[%clk 0:02:32.3]} 13... h6 {[%clk 0:02:47]} 14. Be3
{[%clk 0:02:23.2]} 14... c5 {[%clk 0:02:44.3]} 15. Nd5 {[%clk 0:02:00.4]} 15...
Nxd5 {[%clk 0:02:42.5]} 16. Bxd5 {[%clk 0:02:01.3]} 16... Bb7 {[%clk 0:02:38]}
17. Rad1 {[%clk 0:01:33.9]} 17... Bxd5 {[%clk 0:02:21.4]} 18. Rxd5 {[%clk
0:01:33]} 18... Kh8 {[%clk 0:01:59.8]} 19. Qf5 {[%clk 0:01:22.7]} 19... f6
{[%clk 0:01:53.8]} 20. Rd7 {[%clk 0:01:19.4]} 20... Qc8 {[%clk 0:01:51.7]} 21.
Rxe7 {[%clk 0:01:18]} 21... Qxf5 {[%clk 0:01:51.6]} 22. exf5 {[%clk 0:01:18.4]}
22... Rac8 {[%clk 0:01:50.6]} 23. Rd1 {[%clk 0:01:17.7]} 23... Kg8 {[%clk
0:01:50.1]} 24. Rdd7 {[%clk 0:01:17.4]} 24... Rfd8 {[%clk 0:01:49.3]} 25. Rxg7+
{[%clk 0:01:16.9]} 25... Kf8 {[%clk 0:01:49.7]} 26. Rdf7+ {[%clk 0:01:13.4]}
26... Ke8 {[%clk 0:01:48.7]} 27. Bxh6 {[%clk 0:01:05.2]} 27... Rd1+ {[%clk
0:01:44.7]} 28. Kh2 {[%clk 0:01:05.3]} 28... c4 {[%clk 0:01:41.7]} 29. Rh7
{[%clk 0:01:01.4]} 29... b4 {[%clk 0:01:36.8]} 30. Rf8# {[%clk 0:01:00.8]} 1-0

[Event "*** Titled Tuesday Blitz"]
[Site "Chess.com"]
[Date "2021.04.27"]
[Round "3"]
[White "mbachez"]
[Black "TST2014"]
[Result "0-1"]
[WhiteElo "2425"]
[BlackElo "2670"]
[TimeControl "180+1"]
[EndTime "10:25:51 PDT"]
[Termination "TST2014 won by resignation"]

1. d4 {[%clk 0:03:00.9]} 1... Nf6 {[%clk 0:02:53.5]} 2. Nf3 {[%clk 0:02:59.3]}
2... g6 {[%clk 0:02:52.1]} 3. Nc3 {[%clk 0:02:56.3]} 3... d5 {[%clk 0:02:51.4]}
4. Bf4 {[%clk 0:02:55.7]} 4... Bg7 {[%clk 0:02:49.7]} 5. Nb5 {[%clk 0:02:56]}
5... Na6 {[%clk 0:02:49]} 6. e3 {[%clk 0:02:56.2]} 6... Ne4 {[%clk 0:02:42.8]}
7. Nd2 {[%clk 0:02:41.6]} 7... Nd6 {[%clk 0:02:28]} 8. a4 {[%clk 0:02:39.6]}
8... O-O {[%clk 0:02:23.6]} 9. Be2 {[%clk 0:02:37.4]} 9... c5 {[%clk 0:02:20.3]}
10. O-O {[%clk 0:02:29.4]} 10... Bf5 {[%clk 0:02:18]} 11. c3 {[%clk 0:02:23.2]}
11... c4 {[%clk 0:02:01.2]} 12. Nxd6 {[%clk 0:02:11.8]} 12... exd6 {[%clk
0:02:00.7]} 13. b3 {[%clk 0:02:09.5]} 13... cxb3 {[%clk 0:01:52]} 14. Qxb3
{[%clk 0:02:09.4]} 14... Nc7 {[%clk 0:01:40.7]} 15. Qxb7 {[%clk 0:02:04.5]}
15... Rb8 {[%clk 0:01:36.3]} 16. Qxa7 {[%clk 0:02:04.3]} 16... Rb2 {[%clk
0:01:36.1]} 17. e4 {[%clk 0:01:51.1]} 17... dxe4 {[%clk 0:01:27.8]} 18. Rfe1
{[%clk 0:01:30.5]} 18... Nd5 {[%clk 0:01:26.7]} 19. Be3 {[%clk 0:01:21.4]} 19...
Nxe3 {[%clk 0:01:26.1]} 20. fxe3 {[%clk 0:01:06.3]} 20... Rxd2 {[%clk
0:01:25.4]} 21. a5 {[%clk 0:01:06.5]} 21... Bh6 {[%clk 0:01:22.5]} 22. a6 {[%clk
0:00:52.7]} 22... Bxe3+ {[%clk 0:01:21.8]} 23. Kh1 {[%clk 0:00:47.7]} 23... Bf2
{[%clk 0:01:22.1]} 0-1

[Event "*** Titled Tuesday Blitz"]
[Site "Chess.com"]
[Date "2021.04.27"]
[Round "3"]
[White "Vugar_Manafov"]
[Black "Raud100"]
[Result "1-0"]
[WhiteElo "2735"]
[BlackElo "2450"]
[TimeControl "180+1"]
[EndTime "10:25:58 PDT"]
[Termination "Vugar_Manafov won by resignation"]

1. d4 {[%clk 0:03:00.9]} 1... d5 {[%clk 0:03:00.1]} 2. c4 {[%clk 0:03:00.6]}
2... c6 {[%clk 0:02:58]} 3. Nc3 {[%clk 0:03:00]} 3... Nf6 {[%clk 0:02:58.3]} 4.
e3 {[%clk 0:02:58.9]} 4... Bf5 {[%clk 0:02:56.8]} 5. cxd5 {[%clk 0:02:58]} 5...
Nxd5 {[%clk 0:02:57.7]} 6. Nxd5 {[%clk 0:02:54.5]} 6... cxd5 {[%clk 0:02:57.3]}
7. Qb3 {[%clk 0:02:53.7]} 7... Bc8 {[%clk 0:02:55.6]} 8. Nf3 {[%clk 0:02:52]}
8... e6 {[%clk 0:02:55]} 9. Bd2 {[%clk 0:02:50.8]} 9... Bd6 {[%clk 0:02:54.1]}
10. Bd3 {[%clk 0:02:49.9]} 10... O-O {[%clk 0:02:53.9]} 11. O-O {[%clk
0:02:49.3]} 11... Nc6 {[%clk 0:02:54]} 12. Rac1 {[%clk 0:02:48.8]} 12... Qb6
{[%clk 0:02:41.2]} 13. Qc2 {[%clk 0:02:41.7]} 13... g6 {[%clk 0:02:34.5]} 14. a3
{[%clk 0:02:40.5]} 14... a5 {[%clk 0:02:32.2]} 15. Bc3 {[%clk 0:02:36.7]} 15...
Bd7 {[%clk 0:02:31.4]} 16. e4 {[%clk 0:02:35.2]} 16... dxe4 {[%clk 0:02:24.9]}
17. Bxe4 {[%clk 0:02:36.1]} 17... Rac8 {[%clk 0:02:24.3]} 18. d5 {[%clk
0:02:18]} 18... exd5 {[%clk 0:02:18.5]} 19. Bxd5 {[%clk 0:02:18.2]} 19... Bf5
{[%clk 0:02:09.8]} 20. Qd2 {[%clk 0:02:13.3]} 20... Rfd8 {[%clk 0:02:06]} 21.
Rfe1 {[%clk 0:01:32.7]} 21... Bf8 {[%clk 0:01:57.3]} 22. Ng5 {[%clk 0:01:24.9]}
22... Rd7 {[%clk 0:01:43]} 23. Nxf7 {[%clk 0:01:19.8]} 23... h5 {[%clk
0:00:59.2]} 24. Ng5+ {[%clk 0:01:16.7]} 1-0